bitfinex/quotes_ETHUSD_20250422
["timestamp","ask_amount","ask_price","bid_price","bid_amount"]
[1745308965731,6.16829807,1621.2,1620.8,6.94815061]
[1745308968426,6.16870488,1621.1,1620.8,6.16975267]
[1745308968742,7.53327094,1621.2,1620.7,6.1699352]
[1745308968964,0.7721,1621.0,1620.6,3.7786]
[1745308969143,6.16962058,1620.9,1620.6,3.0]
[1745308969440,0.7721,1621.0,1620.7,12.33985848]
[1745308969740,0.7721,1621.0,1620.7,6.16995758]
[1745308969926,7.63533902,1621.0,1620.6,6.17031443]
[1745308970116,7.63533902,1621.0,1620.6,6.17030667]
[1745308970501,6.16956435,1620.9,1620.5,3.0]
[1745308970743,6.16956435,1620.9,1620.5,9.17065196]
[1745308970958,6.16956435,1620.9,1620.4,39.9518125]
[1745308970959,6.17002482,1620.8,1620.4,39.9518125]
[1745308971130,7.4038655,1620.8,1620.2,7.2866]
[1745308971315,0.7721,1620.7,1620.2,13.4585764]
[1745308971526,6.17065016,1620.6,1620.1,0.1]
[1745308971732,6.17065016,1620.6,1620.1,6.27231728]
[1745308971733,6.17128125,1620.5,1620.1,6.27231728]
[1745308971939,6.17128125,1620.5,1620.1,12.44454109]
[1745308972145,6.17128125,1620.5,1620.1,6.27222381]
[1745308972467,6.94241327,1620.7,1620.3,6.17143228]
[1745308972867,6.17061108,1620.6,1620.1,6.97610727]
[1745308973024,6.17061108,1620.6,1620.2,6.17179441]
[1745308973218,6.94246915,1620.7,1620.3,6.17134447]
[1745308973430,0.7721,1620.7,1620.4,6.17117683]
[1745308973640,6.17005757,1620.8,1620.3,6.17144253]
[1745308973846,6.17031053,1620.7,1620.3,6.17143959]
[1745308974151,6.86433387,1620.8,1620.4,6.17110135]
[1745308974449,6.86433387,1620.8,1620.5,6.1708893]
[1745308974647,6.94294077,1620.9,1620.4,6.171158]
[1745308974648,6.94293594,1620.9,1620.4,6.171158]
[1745308974848,6.1698263,1620.8,1620.5,6.1708766]
[1745308975041,6.94293594,1620.9,1620.4,6.17131572]
[1745308975042,0.7733,1620.9,1620.4,6.17131572]
[1745308975356,0.7579,1621.1,1620.8,6.16968602]
[1745308975552,6.92672154,1621.1,1620.7,6.16987965]
[1745308975724,6.92672154,1621.1,1620.7,12.33985472]
[1745308975925,6.92672154,1621.1,1620.7,6.16987965]
[1745308976144,8.1679987,1621.1,1620.7,6.16987965]
[1745308976955,1.99917716,1621.1,1620.5,0.7989]
[1745308977250,1.99917716,1621.1,1620.4,6.17107625]
[1745308977251,6.16994042,1620.8,1620.4,6.17107625]
[1745308977453,6.17033987,1620.7,1620.4,6.17107625]
[1745308977617,6.16994042,1620.8,1620.4,6.17107625]
[1745308977817,6.16994042,1620.8,1620.4,12.34219126]
[1745308978240,6.16944765,1620.9,1620.5,6.17075283]
[1745308978440,6.16926655,1621.0,1620.6,6.17028781]
[1745308978655,6.16958496,1620.9,1620.5,12.34148664]
[1745308978831,6.16958496,1620.9,1620.5,6.17067879]
[1745308979230,6.86175329,1621.0,1620.4,9.17101801]
[1745308979463,6.86175329,1621.0,1620.6,6.17025185]
[1745308979759,6.92673496,1621.1,1620.7,6.1699706]
[1745308979760,6.9267673,1621.1,1620.7,6.1699706]
[1745308979949,6.9267673,1621.1,1620.8,6.16976137]
[1745308980254,6.9260366,1621.3,1620.9,6.16917135]
[1745308980455,6.16715147,1621.5,1620.9,4.73316551]
[1745308980456,6.92516034,1621.5,1620.9,4.73316551]
[1745308980656,6.82670443,1621.7,1621.3,6.16782528]
[1745308980657,6.16689858,1621.6,1621.3,6.16782528]
[1745308981154,6.16689858,1621.6,1621.2,6.96694085]
[1745308981357,12.33393738,1621.6,1621.2,6.96693676]
[1745308981560,6.1676349,1621.4,1621.1,6.16853196]
[1745308981721,6.16730873,1621.5,1621.1,12.33698848]
[1745308981923,6.16889647,1621.1,1620.8,0.7989]
[1745308982146,12.33770494,1621.1,1620.8,0.7989]
[1745308982463,6.16879025,1621.1,1620.8,0.7989]
[1745308982789,6.16879025,1621.1,1620.8,6.96856777]
[1745308982960,6.16993139,1620.8,1620.4,6.96986886]
[1745308983158,6.16962778,1620.9,1620.5,6.17081036]
[1745308983329,12.33936453,1620.9,1620.5,6.17081036]
[1745308983532,12.33936453,1620.9,1620.4,8.7106823]
[1745308983533,6.17000482,1620.8,1620.4,6.96986886]
[1745308983749,6.16962586,1620.9,1620.5,6.23251901]
[1745308983961,6.16962586,1620.9,1620.6,6.17042969]
[1745308984326,6.78570823,1621.1,1620.7,6.1698671]
[1745308984637,6.16913795,1621.0,1620.6,12.34071951]
[1745308984939,6.16994862,1620.8,1620.4,6.96997076]
[1745308985143,6.9274572,1620.9,1620.5,6.17092139]
[1745308985361,13.09721872,1620.9,1620.5,6.17092139]
[1745308985574,6.16993207,1620.8,1620.5,6.17092139]
[1745308985862,6.9274572,1620.9,1620.5,6.17070422]
[1745308986066,6.9274572,1620.9,1620.5,12.34149796]
[1745308986268,6.9274572,1620.9,1620.5,6.17070422]
[1745308986444,6.16979707,1620.8,1620.5,6.17070422]
[1745308986637,6.9274572,1620.9,1620.5,6.17070422]
[1745308986842,6.9274572,1620.9,1620.5,12.34139149]
[1745308987029,6.9274572,1620.9,1620.5,6.17068727]
[1745308987229,8.30498711,1620.9,1620.5,6.17068727]
[1745308987453,6.1695572,1620.9,1620.5,6.17068279]
[1745308987625,6.1692764,1621.0,1620.7,6.1701548]
[1745308987837,6.9267001,1621.1,1620.7,6.1701548]
[1745308988037,6.9267001,1621.1,1620.6,6.17035139]
[1745308988038,6.16913301,1621.0,1620.6,6.17035139]
[1745308988275,6.16913301,1621.0,1620.7,6.17004677]
[1745308988965,6.16913301,1621.0,1620.4,4.73316551]
[1745308989276,12.33851689,1621.0,1620.6,6.17027638]
[1745308989573,12.33843341,1621.0,1620.6,6.17027638]
[1745308989766,12.33843341,1621.0,1620.5,6.17072602]
[1745308989767,6.16942971,1620.9,1620.5,6.17072602]
[1745308989935,1.37890034,1621.0,1620.4,13.90433551]
[1745308990135,6.16955348,1620.9,1620.5,6.17074064]
[1745308990336,6.16955348,1620.9,1620.5,12.3414325]
[1745308990557,6.16955348,1620.9,1620.6,6.17045469]
[1745308991364,7.54811457,1621.0,1620.6,6.17033047]
[1745308991546,13.71749109,1621.0,1620.6,6.17033047]
[1745308991731,6.16941377,1620.9,1620.6,6.17033047]
[1745308992282,6.16990044,1620.8,1620.4,7.73316551]
[1745308992435,6.16990044,1620.8,1620.5,6.17089382]
[1745308992970,6.16990044,1620.8,1620.4,16.14114416]
[1745308993273,6.16990044,1620.8,1620.5,6.17089893]
[1745308993448,6.16990044,1620.8,1620.4,16.14113872]
[1745308993636,6.16990044,1620.8,1620.5,6.17084228]
[1745308994685,12.34003027,1620.8,1620.4,9.96999743]
[1745308994885,12.33999084,1620.8,1620.4,9.96999743]
[1745308995070,6.17029888,1620.7,1620.4,9.96997661]
[1745308995374,13.71116412,1620.8,1620.4,16.14105474]
[1745308995765,6.17087258,1620.6,1620.4,0.7989]
[1745308995976,6.17155978,1620.4,1620.1,3.1]
[1745308996155,6.17075458,1620.6,1620.3,6.17158495]
[1745308996484,6.87049999,1620.6,1620.2,6.17198033]
[1745308996687,6.17108988,1620.5,1620.2,6.17198033]
[1745308997276,6.17108988,1620.5,1620.1,21.94947415]
[1745308997587,6.17108988,1620.5,1620.1,12.77723538]
[1745308997827,6.17108988,1620.5,1620.1,6.605]
[1745308997828,6.17093489,1620.5,1620.1,6.605]
[1745308997944,6.1719823,1620.3,1620.1,6.605]
[1745308998143,6.17207752,1620.2,1620.1,0.1]
[1745308998643,6.99897752,1620.2,1620.1,0.1]
[1745308998975,8.93325217,1620.2,1620.1,0.1]
[1745308999478,15.41925217,1620.2,1620.1,0.1]
[1745309000196,6.17655264,1619.1,1618.7,7.00220482]
[1745309000392,6.17609743,1619.2,1618.8,6.17727444]
[1745309000684,6.17609743,1619.2,1618.8,6.17718411]
[1745309000979,12.35160701,1619.3,1618.9,6.17702308]
[1745309001187,6.17593469,1619.2,1618.9,6.17702308]
[1745309001347,6.17593469,1619.2,1618.8,12.35446324]
[1745309001561,6.17593469,1619.2,1618.7,1.28255985]
[1745309001562,7.00334898,1619.1,1618.6,6.17802642]
[1745309001764,0.8269,1619.1,1618.8,6.17717288]
[1745309002196,6.17418898,1619.7,1618.9,13.93589424]
[1745309002382,6.79190797,1619.6,1619.2,6.17584567]
[1745309002577,0.6174189,1619.6,1619.2,6.17564174]
[1745309002813,0.8269,1619.5,1619.0,0.8246]
[1745309002992,7.0019565,1619.5,1619.0,7.00098448]
[1745309003188,6.17369275,1619.8,1619.0,7.00098448]
[1745309003189,7.00120055,1619.7,1619.2,6.17557876]
[1745309003404,2.14439981,1619.7,1619.4,3.0]
[1745309003598,0.8269,1619.7,1619.4,3.0]
[1745309003804,7.00109485,1619.7,1619.4,3.0]
[1745309004094,7.00108914,1619.7,1619.2,6.17566932]
[1745309004402,6.17436982,1619.6,1619.3,3.0]
[1745309004699,7.00108914,1619.7,1619.3,9.17548739]
[1745309004876,0.70010891,1619.6,1619.3,9.17548739]
[1745309005394,6.87464466,1619.6,1619.3,3.0]
[1745309005574,6.17478081,1619.5,1619.3,3.0]
[1745309005769,0.70010891,1619.6,1619.1,3.0]
[1745309005979,6.17489034,1619.5,1619.1,9.17615226]
[1745309006202,6.17545489,1619.4,1619.1,3.0]
[1745309006406,6.17490467,1619.5,1619.1,3.0]
[1745309006698,6.17490467,1619.5,1619.1,9.17625547]
[1745309006901,12.35002481,1619.5,1619.1,9.17625547]
[1745309007079,7.41019313,1619.4,1619.1,3.0]
[1745309007259,6.17519065,1619.4,1619.1,3.0]
[1745309008398,6.17564649,1619.3,1619.0,6.509]
[1745309008605,6.94629628,1619.4,1619.1,6.176223]
[1745309008787,0.69462963,1619.3,1619.0,12.68539039]
[1745309008979,0.69462963,1619.3,1619.1,6.17622037]
[1745309009202,0.771,1619.4,1619.2,6.17586387]
[1745309009429,13.02563455,1619.6,1619.2,12.35151069]
[1745309009734,13.02563455,1619.6,1619.2,6.17584701]
[1745309009934,19.20030689,1619.6,1619.2,6.17584701]
[1745309010131,13.02563455,1619.6,1619.2,6.17584701]
[1745309010300,1.30256346,1619.5,1619.2,12.35149109]
[1745309010498,1.30256346,1619.5,1619.2,6.17564218]
[1745309010931,7.47735986,1619.5,1619.2,6.17564218]
[1745309011127,1.30256346,1619.5,1619.2,12.35129573]
[1745309011426,1.30256346,1619.5,1619.2,6.17564218]
[1745309012032,6.1736586,1619.8,1619.4,6.17491457]
[1745309012033,13.11866267,1619.8,1619.4,6.17491457]
[1745309012325,6.94477411,1619.8,1619.4,6.17486399]
[1745309012532,6.94477411,1619.8,1619.5,6.17473075]
[1745309012730,6.94477411,1619.8,1619.5,6.17452651]
[1745309012731,0.771,1619.8,1619.5,6.17452651]
[1745309012937,12.34693905,1619.9,1619.5,6.17452651]
[1745309013138,7.4852489,1619.9,1619.5,12.349047]
[1745309013297,7.4852489,1619.9,1619.5,6.1745101]
[1745309013829,7.4852489,1619.9,1619.6,6.17432171]
[1745309014034,8.42827596,1620.2,1619.9,6.17301493]
[1745309014336,6.94296381,1620.3,1619.9,6.17301493]
[1745309015134,6.17219909,1620.2,1619.9,6.17301493]
[1745309015366,6.94296381,1620.3,1619.9,6.17301493]
[1745309015541,6.94296381,1620.3,1619.9,12.34598234]
[1745309016445,6.94296381,1620.3,1619.9,6.17296741]
[1745309016623,6.86648875,1620.2,1619.9,6.17296741]
[1745309016807,0.69429638,1620.2,1619.9,6.17296741]
[1745309017036,0.69429638,1620.2,1619.9,12.34593636]
[1745309017337,0.69429638,1620.2,1619.7,7.71086551]
[1745309017338,0.69429638,1620.2,1620.0,6.17271983]
[1745309017542,6.17154083,1620.4,1620.0,6.17268535]
[1745309017742,13.1133098,1620.5,1620.1,6.17235058]
[1745309018045,0.771,1620.5,1620.2,6.17186712]
[1745309018404,0.771,1620.7,1620.5,6.17093489]
[1745309018605,0.771,1620.9,1620.5,6.17093489]
[1745309018802,0.771,1620.9,1620.3,6.94825056]
[1745309018803,1.46500902,1620.9,1620.6,6.17032556]
[1745309019002,0.32179652,1621.1,1620.8,0.7766]
[1745309019300,6.16883669,1621.1,1620.8,0.7766]
[1745309019521,6.16931459,1621.0,1620.8,0.7766]
[1745309019924,6.16931459,1621.0,1620.7,6.17009155]
[1745309020531,6.938911,1621.3,1620.4,0.7739]
[1745309020532,0.7607,1620.9,1620.4,0.7739]
[1745309020734,12.34023077,1620.8,1620.4,9.94508493]
[1745309020932,6.17018504,1620.7,1620.2,0.7739]
[1745309021124,1.31009308,1620.8,1620.2,0.7739]
[1745309021125,6.17108138,1620.5,1620.2,0.7739]
[1745309021325,6.17169659,1620.3,1619.9,6.94678411]
[1745309021532,6.17147018,1620.4,1620.0,6.17246651]
[1745309022749,6.17071979,1620.6,1620.1,9.502]
[1745309022914,6.17071979,1620.6,1620.2,6.17190642]
[1745309023109,6.17071979,1620.6,1620.2,12.34381284]
[1745309023316,6.9223556,1620.8,1620.4,6.17106623]
[1745309023615,6.17051452,1620.7,1620.3,6.96237978]
[1745309023841,13.03331049,1620.7,1620.3,6.96237978]
[1745309024014,6.86279597,1620.7,1620.3,6.96237978]
[1745309024346,6.17057814,1620.6,1620.3,6.1714709]
[1745309024851,6.17112666,1620.5,1620.1,17.39940722]
[1745309025151,6.17112666,1620.5,1620.2,9.17206945]
[1745309025655,6.17149766,1620.4,1620.1,13.46524667]
[1745309025812,12.34315616,1620.4,1620.1,7.2929]
[1745309026007,6.17152201,1620.4,1620.1,7.2929]
[1745309026238,6.17152201,1620.4,1620.1,13.46533724]
[1745309026612,6.17152201,1620.4,1620.1,7.2929]
[1745309026813,6.1717512,1620.3,1620.1,7.2929]
[1745309027044,6.1717512,1620.3,1620.1,6.502]
[1745309027456,8.28151002,1620.4,1620.1,6.502]
[1745309028958,6.17194006,1620.3,1620.1,6.502]
[1745309030294,6.1728395,1620.0,1619.9,3.0]
[1745309030746,6.1728395,1620.0,1619.8,6.502]
[1745309031180,6.17180595,1620.3,1619.8,6.502]
[1745309031351,0.7523,1620.4,1619.9,6.17296986]
[1745309031559,6.17196577,1620.3,1619.9,6.17296986]
[1745309031768,12.34399387,1620.3,1619.9,6.17296986]
[1745309032098,6.17210553,1620.2,1619.9,6.17296986]
[1745309032901,6.17196577,1620.3,1620.0,6.17282872]
[1745309033190,6.17174939,1620.3,1620.0,6.17260725]
[1745309033993,6.92375452,1620.4,1620.0,12.34523995]
[1745309034195,8.23324625,1620.4,1620.1,6.17242078]
[1745309034400,6.17145452,1620.4,1620.1,6.17242078]
[1745309034896,6.17145452,1620.4,1620.1,3.0]
[1745309035289,6.17145452,1620.4,1620.1,9.1724172]
[1745309036292,0.32178568,1620.7,1620.5,6.92718461]
[1745309036465,0.32178568,1620.7,1620.5,0.7564]
[1745309036799,0.32178568,1620.7,1620.5,3.7564]
[1745309036988,12.3401226,1620.8,1620.5,3.7564]
[1745309037171,6.17020909,1620.7,1620.5,0.7564]
[1745309037365,1.23401226,1620.8,1620.6,6.1704645]
[1745309037695,12.33932213,1620.9,1620.5,6.92713359]
[1745309037904,6.16960411,1620.9,1620.5,6.92713359]
[1745309038089,6.17046331,1620.7,1620.4,9.17120439]
[1745309038667,6.17088892,1620.6,1620.2,13.43015978]
[1745309038901,6.17103649,1620.5,1620.2,13.43015978]
[1745309039098,6.17143105,1620.4,1620.1,9.1723389]
[1745309039310,8.21713334,1620.5,1620.1,9.17220811]
[1745309039614,6.17069897,1620.6,1620.2,12.34375969]
[1745309039813,12.34153203,1620.6,1620.2,6.17182665]
[1745309040173,6.17096467,1620.5,1620.2,6.17182665]
[1745309040590,6.17069897,1620.6,1620.2,6.17182665]
[1745309040775,6.17100458,1620.5,1620.2,6.17182665]
[1745309041211,20.0,1620.3,1620.2,9.17182665]
[1745309041812,20.0,1620.3,1620.2,11.76633486]
[1745309042945,20.0,1620.3,1620.2,9.93192665]
[1745309043417,20.0,1620.3,1620.2,6.17182665]
[1745309044020,20.0,1620.3,1620.2,9.17182665]
[1745309044380,20.0,1620.3,1620.2,13.10609216]
[1745309044879,20.0,1620.3,1620.2,13.86619216]
[1745309045081,20.0,1620.3,1620.2,16.48726398]
[1745309046394,20.0,1620.3,1620.2,17.03726398]
[1745309050315,19.67,1620.3,1620.2,17.03726398]
[1745309050479,12.41928257,1620.3,1620.2,17.03726398]
[1745309050684,9.33653548,1620.3,1620.2,17.03726398]
[1745309051192,0.822,1621.1,1620.9,6.16924388]
[1745309051839,6.16812175,1621.3,1620.8,6.16965285]
[1745309051840,0.822,1621.3,1621.0,6.16903146]
[1745309051987,0.822,1621.3,1621.1,6.16852109]
[1745309052429,0.822,1621.3,1621.1,6.16843066]
[1745309052724,0.822,1621.3,1621.0,12.33761626]
[1745309053016,1.52096172,1621.3,1621.0,6.16879747]
[1745309053220,7.68898013,1621.3,1620.9,9.16926406]
[1745309053422,7.68898013,1621.3,1620.9,15.33853738]
[1745309053726,0.02198153,1621.5,1621.0,10.42826551]
[1745309054035,0.02198153,1621.5,1621.4,6.16750955]
[1745309054262,0.02198153,1621.5,1621.4,13.10177506]
[1745309054558,0.02198153,1621.5,1621.4,20.14577506]
[1745309055053,0.02198153,1621.5,1621.4,20.90247506]
[1745309055342,0.02198153,1621.5,1621.4,23.26822969]
[1745309055542,0.02198153,1621.5,1621.4,23.72373176]
[1745309055941,6.98630703,1622.3,1622.0,3.0]
[1745309056148,6.1645916,1622.2,1622.0,3.0]
[1745309056513,6.1645916,1622.2,1621.9,6.494]
[1745309056804,0.61645916,1622.1,1621.9,6.494]
[1745309057247,0.61645916,1622.1,1621.9,12.65958664]
[1745309057853,6.16469124,1622.2,1621.9,3.0]
[1745309059055,6.16451415,1622.2,1621.9,3.0]
[1745309059215,6.98629517,1622.3,1621.9,9.16558347]
[1745309059721,13.15067355,1622.3,1621.9,9.16558347]
[1745309059922,7.4795919,1622.2,1621.9,3.0]
[1745309060128,13.6443616,1622.2,1621.9,3.0]
[1745309060323,7.4795919,1622.2,1621.9,3.0]
[1745309060833,1.31506736,1622.2,1622.0,6.92172271]
[1745309061010,13.06556161,1622.5,1622.2,3.0]
[1745309061011,19.22920998,1622.5,1622.2,3.0]
[1745309061213,6.16378771,1622.4,1622.2,3.0]
[1745309061905,6.163128,1622.6,1622.2,15.65516362]
[1745309062113,0.32144421,1622.7,1622.5,10.09729278]
[1745309062409,6.16159814,1623.0,1622.6,12.65381643]
[1745309062650,0.61615981,1622.9,1622.7,13.86954586]
[1745309062829,6.91622114,1623.1,1622.7,13.86954586]
[1745309063031,6.16146964,1623.0,1622.7,13.86954586]
[1745309063342,6.91627282,1623.1,1622.7,13.86974989]
[1745309063545,6.91627282,1623.1,1622.7,13.86963092]
[1745309063745,13.07760897,1623.1,1622.7,13.86963092]
[1745309064050,1.3077609,1623.0,1622.7,13.86963092]
[1745309064348,1.3077609,1623.0,1622.8,6.16218452]
[1745309064718,6.16127282,1623.1,1622.7,13.86957518]
[1745309064918,0.8233,1623.3,1622.7,7.70726551]
[1745309065129,6.16163969,1623.0,1622.7,7.70726551]
[1745309065492,6.16088144,1623.2,1622.8,6.16208179]
[1745309065860,6.58145419,1623.4,1623.0,6.16126064]
[1745309066059,0.65814542,1623.3,1623.0,12.64926064]
[1745309066356,0.65814542,1623.3,1623.1,3.0]
[1745309066852,0.1,1623.4,1623.3,3.0]
[1745309067015,0.1,1623.4,1623.3,3.7825]
[1745309067215,0.1,1623.4,1623.3,7.71676551]
[1745309067410,0.1,1623.4,1623.3,14.48865447]
[1745309067644,0.1,1623.4,1623.3,8.26676551]
[1745309067957,0.1,1623.4,1623.3,14.42705627]
[1745309068846,0.1,1623.4,1623.3,20.87077527]
[1745309069229,0.1,1623.4,1623.3,23.49184709]
[1745309069438,0.1,1623.4,1623.3,23.94358646]
[1745309069620,0.28991813,1623.7,1623.6,9.7091525]
[1745309069821,0.28991813,1623.7,1623.6,20.96549465]
[1745309070159,0.055,1624.0,1623.9,9.15801465]
[1745309070328,6.21280801,1624.0,1623.6,0.31042849]
[1745309070532,0.055,1624.0,1623.7,9.15857486]
[1745309071248,6.21271244,1624.0,1623.7,3.0]
[1745309071425,0.055,1624.0,1623.7,9.15863574]
[1745309072276,0.055,1624.0,1623.7,9.15852178]
[1745309072472,0.055,1624.0,1623.8,6.477]
[1745309072777,6.15838095,1623.9,1623.8,6.477]
[1745309073458,0.055,1624.0,1623.8,6.477]
[1745309074269,6.21266429,1624.0,1623.8,6.477]
[1745309075885,0.055,1624.0,1623.8,6.477]
[1745309076041,6.21281475,1624.0,1623.8,6.477]
[1745309076437,12.37071574,1624.0,1623.8,6.477]
[1745309076659,6.21281475,1624.0,1623.8,6.477]
[1745309076861,12.3707526,1624.0,1623.8,6.477]
[1745309077145,6.15801465,1623.9,1623.8,6.477]
[1745309077341,6.98131465,1623.9,1623.4,3.93426551]
[1745309077683,6.15931337,1623.6,1623.3,6.474]
[1745309077895,0.8233,1623.9,1623.5,6.15941428]
[1745309078185,7.49041366,1624.0,1623.5,10.09362415]
[1745309078372,6.21277987,1624.0,1623.6,6.15896861]
[1745309078570,6.21277987,1624.0,1623.7,6.474]
[1745309078979,6.15813278,1623.9,1623.7,6.474]
[1745309079388,12.31649901,1623.9,1623.7,6.474]
[1745309079588,6.15813278,1623.9,1623.7,6.474]
[1745309080522,6.15953187,1623.5,1623.3,3.93426551]
[1745309080662,6.15936524,1623.6,1623.3,6.474]
[1745309081252,12.31879318,1623.6,1623.3,6.474]
[1745309081454,6.15959024,1623.5,1623.3,6.474]
[1745309081894,12.31873399,1623.6,1623.3,6.474]
[1745309082059,6.16029076,1623.3,1623.2,26.79]
[1745309082265,6.16029076,1623.3,1623.2,20.316]
[1745309082844,6.94989385,1623.4,1623.2,20.316]
[1745309083049,6.16002049,1623.4,1623.2,20.316]
[1745309083464,6.15994436,1623.4,1623.2,21.1411]
[1745309083662,6.15969136,1623.5,1623.2,21.1411]
[1745309083887,6.16018942,1623.4,1623.2,21.1411]
[1745309084074,6.15975009,1623.5,1623.2,21.1411]
[1745309084311,6.16008756,1623.4,1623.2,21.1411]
[1745309084519,6.16029076,1623.3,1623.2,20.316]
[1745309084701,6.15972435,1623.5,1623.2,20.316]
[1745309085039,12.31803065,1623.7,1623.4,0.8251]
[1745309085335,12.31802145,1623.7,1623.4,0.8251]
[1745309085632,6.15918061,1623.6,1623.4,0.8251]
[1745309085995,6.15953187,1623.5,1623.2,26.47645989]
[1745309086191,6.15953187,1623.5,1623.2,20.316]
[1745309086397,6.15953187,1623.5,1623.2,26.47656484]
[1745309086622,6.159327,1623.6,1623.2,26.47656484]
[1745309086826,6.159327,1623.6,1623.2,26.47641924]
[1745309087139,6.15819952,1623.9,1623.6,6.15911952]
[1745309087432,6.1585407,1623.8,1623.6,6.474]
[1745309089112,6.15919937,1623.6,1623.4,0.8251]
[1745309089337,6.15919937,1623.6,1623.5,6.474]
[1745309090039,6.16015062,1623.4,1623.2,21.1411]
[1745309090195,6.16015062,1623.4,1623.3,6.474]
[1745309091211,12.31951716,1623.5,1623.3,6.474]
[1745309091715,6.15991129,1623.4,1623.3,6.474]
[1745309092128,6.10991129,1623.4,1623.3,6.474]
[1745309092838,12.31951147,1623.5,1623.3,6.474]
[1745309093535,6.15971732,1623.5,1623.3,6.474]
[1745309094642,12.31952105,1623.5,1623.3,6.474]
[1745309095145,6.15971732,1623.5,1623.3,6.474]
[1745309095945,6.15991129,1623.4,1623.3,6.474]
[1745309096308,12.31953004,1623.5,1623.3,6.474]
[1745309096940,6.15971732,1623.5,1623.3,6.474]
[1745309097242,6.15991129,1623.4,1623.2,26.791]
[1745309098098,6.91701129,1623.4,1623.1,0.46196019]
[1745309098303,6.91701129,1623.4,1623.0,6.16119043]
[1745309098503,0.7571,1623.4,1623.1,6.16095161]
[1745309098701,6.15971054,1623.5,1623.2,6.16061323]
[1745309098912,6.91640315,1623.6,1623.3,6.16029023]
[1745309099133,13.5489203,1623.8,1623.4,6.1598]
[1745309099354,14.3060203,1623.8,1623.4,6.1598]
[1745309099839,6.15815203,1623.9,1623.6,6.15901654]
[1745309100037,0.8121,1624.0,1623.7,6.1585683]
[1745309100240,0.055,1624.0,1623.7,6.1585683]
[1745309100553,0.055,1624.0,1623.7,12.62356787]
[1745309100707,6.21288937,1624.0,1623.7,6.465]
[1745309100908,6.15811962,1623.9,1623.7,6.465]
[1745309101517,7.49041316,1624.0,1623.7,6.465]
[1745309101913,7.49040522,1624.0,1623.7,6.465]
[1745309102120,7.49039119,1624.0,1623.7,6.465]
[1745309102531,6.15812196,1623.9,1623.7,6.465]
[1745309102739,6.15991129,1623.4,1623.3,21.1172]
[1745309102917,6.15991129,1623.4,1623.3,26.77]
[1745309103369,6.15971218,1623.5,1623.3,26.77]
[1745309103572,6.91557196,1623.8,1623.3,26.77]
[1745309103793,6.1591525,1623.6,1623.3,26.77]
[1745309103990,6.77528844,1623.6,1623.3,26.77]
[1745309104274,13.07430723,1623.8,1623.4,6.15965762]
[1745309104477,6.15820132,1623.9,1623.4,6.97186853]
[1745309104690,6.15820132,1623.9,1623.5,6.15941618]
[1745309105008,6.15820132,1623.9,1623.4,6.97186853]
[1745309105009,6.15854229,1623.8,1623.4,13.13160142]
[1745309105407,6.15820132,1623.9,1623.5,12.31882256]
[1745309105564,13.12784531,1624.0,1623.6,6.15901953]
[1745309105764,6.15802253,1623.9,1623.6,6.15901953]
[1745309105964,6.15802253,1623.9,1623.5,7.47239512]
[1745309106204,6.15802253,1623.9,1623.5,13.6316834]
[1745309106364,6.15840731,1623.8,1623.5,6.15928828]
[1745309106708,6.15802253,1623.9,1623.5,12.31858555]
[1745309106859,13.12786902,1624.0,1623.6,6.15906723]
[1745309107064,0.055,1624.0,1623.7,6.465]
[1745309107297,6.21277615,1624.0,1623.7,6.465]
[1745309107601,0.055,1624.0,1623.8,6.15812024]
[1745309107978,0.055,1624.0,1623.9,6.15801465]
[1745309108366,0.055,1624.0,1623.8,6.15812024]
[1745309108981,0.055,1624.0,1623.9,6.15801465]
[1745309109275,0.055,1624.0,1623.9,10.39578591]
[1745309109465,0.32116453,1624.3,1624.0,5.39747859]
[1745309109672,0.1,1624.4,1624.3,9.15649818]
[1745309110417,0.1,1624.4,1624.3,9.96439818]
[1745309110570,0.1,1624.4,1624.3,10.51439818]
[1745309111067,0.1,1624.4,1624.3,16.42739818]
[1745309111270,0.1,1624.4,1624.3,7.2709]
[1745309111469,0.1,1624.4,1624.2,20.303]
[1745309111670,6.15649818,1624.3,1624.2,20.303]
[1745309111870,0.72559799,1624.4,1624.1,6.463]
[1745309112207,0.755,1624.1,1623.7,6.463]
[1745309112369,6.15778856,1624.0,1623.7,6.463]
[1745309112571,6.15706183,1624.2,1623.8,6.15837533]
[1745309112803,0.1,1624.4,1624.1,3.0]
[1745309112988,0.1,1624.4,1624.3,6.15649818]
[1745309113191,0.1,1624.4,1624.3,12.68105271]
[1745309113494,0.1,1624.4,1624.3,13.97739818]
[1745309113694,0.1,1624.4,1624.3,23.63783618]
[1745309113895,6.2605042,1624.7,1624.6,14.44752682]
[1745309114206,0.1,1625.4,1625.3,6.70271026]
[1745309114364,0.1,1625.4,1625.3,6.93426551]
[1745309114569,0.1,1625.4,1625.3,6.463]
[1745309115006,0.1,1625.4,1624.7,6.70463835]
[1745309115007,7.00733269,1625.4,1624.8,6.463]
[1745309115310,6.85345715,1625.3,1624.8,12.61727338]
[1745309115618,0.005,1625.1,1624.9,6.15399041]
[1745309115812,0.005,1625.1,1624.9,6.15395495]
[1745309115986,0.005,1625.1,1624.9,12.30790406]
[1745309116182,0.005,1625.1,1624.9,6.15394911]
[1745309116788,0.005,1625.1,1624.9,6.15408745]
[1745309116972,0.005,1625.1,1624.9,6.15396269]
[1745309117178,0.005,1625.1,1624.9,6.10396269]
[1745309117381,0.005,1625.1,1624.8,12.61741813]
[1745309117697,0.62080969,1625.1,1624.8,12.61734358]
[1745309117899,0.005,1625.1,1624.8,12.61733114]
[1745309118142,0.005,1625.1,1624.9,6.15415645]
[1745309118611,0.005,1625.1,1625.0,6.15384615]
[1745309119119,0.005,1625.1,1624.9,16.24243394]
[1745309119317,0.005,1625.1,1625.0,6.15384615]
[1745309119899,0.005,1625.1,1625.0,6.96174615]
[1745309120104,0.005,1625.1,1625.0,11.17663218]
[1745309120300,0.1,1625.4,1625.3,9.96061026]
[1745309120499,0.1,1625.4,1625.3,20.35587577]
[1745309121183,0.1,1625.4,1625.3,20.90587577]
[1745309121383,0.1,1625.4,1625.3,23.65751674]
[1745309122209,0.1,1625.4,1625.3,20.35587577]
[1745309122800,0.1,1625.4,1625.3,20.90587577]
[1745309123001,0.1,1625.4,1625.3,28.98571177]
[1745309124743,0.4005853,1625.7,1625.6,6.1515748]
[1745309124927,0.04311762,1626.3,1625.7,0.7617]
[1745309125117,0.04311762,1626.3,1625.8,16.54395296]